bitfinex/quotes_SOLUSD_20250806
["timestamp","ask_amount","ask_price","bid_price","bid_amount"]
[1754466954085,0.03,164.36,164.35,29.55017857]
[1754466954968,0.03,164.36,164.35,35.63475417]
[1754466957263,0.03,164.36,164.35,36.31475417]
[1754466957475,0.03,164.36,164.35,35.63475417]
[1754466957982,1e-08,164.36,164.35,51.42096974]
[1754466958162,1e-08,164.38,164.37,26.0]
[1754466958359,1e-08,164.38,164.37,55.55017857]
[1754466958559,1e-08,164.38,164.37,56.23017857]
[1754466959670,1e-08,164.38,164.37,62.31401381]
[1754466961806,0.03,164.42,164.4,34.35017857]
[1754466961959,0.03,164.42,164.41,8.35017857]
[1754466963088,0.03,164.42,164.41,14.43253365]
[1754466968295,0.03,164.43,164.41,97.00253358]
[1754466968598,0.03,164.43,164.42,29.53017857]
[1754466969207,0.73,164.43,164.42,29.53017857]
[1754466970187,0.73,164.43,164.41,88.65235501]
[1754466970389,0.73,164.43,164.42,14.43216372]
[1754466970602,0.03,164.43,164.42,14.43216372]
[1754466970770,0.73,164.43,164.42,14.43216372]
[1754466971786,0.73,164.43,164.42,97.00216365]
[1754466973926,0.03,164.43,164.42,123.00216365]
[1754466974096,0.73,164.43,164.42,123.00216365]
[1754466974717,0.03,164.43,164.42,123.00216365]
[1754466975305,0.73,164.43,164.42,114.65198508]
[1754466975498,0.73,164.43,164.42,123.00216365]
[1754466976837,0.73,164.43,164.42,114.65198508]
[1754466977039,0.73,164.43,164.42,123.00216365]
[1754466977400,0.73,164.43,164.42,114.65198508]
[1754466977824,0.73,164.43,164.42,88.65198508]
[1754466980044,0.03,164.43,164.42,97.00216365]
[1754466980651,0.03,164.43,164.42,118.18216365]
[1754466980803,0.03,164.43,164.42,118.86216365]
[1754466981131,0.03,164.43,164.42,118.18216365]
[1754466984341,0.03,164.44,164.42,118.86216365]
[1754466984533,0.03,164.44,164.43,8.35017857]
[1754466985540,0.03,164.44,164.43,14.43179384]
[1754466988728,0.74,164.44,164.43,14.43179384]
[1754466988949,0.74,164.44,164.43,6.08161527]
[1754466989576,0.74,164.44,164.43,88.6516152]
[1754466990430,0.74,164.44,164.43,97.00179377]
[1754466991856,0.74,164.44,164.43,88.6516152]
[1754466993767,0.03,164.44,164.43,97.00179377]
[1754466993958,0.03,164.44,164.43,97.68179377]
[1754466994368,0.03,164.44,164.43,97.00179377]
[1754466995769,1e-08,164.44,164.43,118.86179377]
[1754466996578,0.1,164.47,164.46,8.35017857]
[1754466996778,0.1,164.47,164.46,90.9201785]
[1754466997469,0.1,164.47,164.46,97.00068439]
[1754466999085,0.81,164.47,164.46,82.56999993]
[1754466999278,0.81,164.47,164.46,88.65050582]
[1754467003673,0.1,164.47,164.46,97.00068439]
[1754467004684,4.90904611,164.47,164.46,88.65050582]
[1754467007370,4.90904611,164.47,164.46,97.00068439]
[1754467008800,4.90904611,164.47,164.46,82.56999993]
[1754467009263,4.90904611,164.47,164.46,88.65050582]
[1754467010771,4.19904611,164.47,164.46,88.65050582]
[1754467012376,4.90904611,164.47,164.46,88.65050582]
[1754467014015,4.90904611,164.47,164.44,82.56999993]
[1754467014215,4.8106171,164.46,164.44,82.56999993]
[1754467014379,13.16079567,164.45,164.44,88.6512119]
[1754467014575,12.45079567,164.45,164.44,82.56999993]
[1754467014892,13.16079567,164.45,164.44,82.56999993]
[1754467015681,13.16079567,164.45,164.44,88.65124536]
[1754467016107,4.8106171,164.45,164.44,88.65124536]
[1754467016309,4.1006171,164.45,164.44,88.65124536]
[1754467016825,4.7606171,164.45,164.44,88.65124536]
[1754467018375,4.1006171,164.45,164.44,89.34124536]
[1754467018675,0.1,164.47,164.44,97.69142393]
[1754467018990,0.1,164.47,164.45,8.35017857]
[1754467019304,0.1,164.47,164.44,97.00142393]
[1754467019305,4.09924464,164.46,164.44,97.00142393]
[1754467019599,0.76,164.47,164.44,97.00142393]
[1754467019775,4.09942035,164.46,164.44,97.00142393]
[1754467019977,0.76,164.47,164.44,97.00142393]
[1754467020189,4.09942035,164.46,164.44,97.00142393]
[1754467020476,0.76,164.47,164.44,97.00142393]
[1754467020683,4.09924501,164.46,164.44,88.65124536]
[1754467020894,4.75949224,164.45,164.44,88.65124536]
[1754467022301,4.09949224,164.45,164.44,88.65124536]
[1754467023808,4.75949224,164.45,164.44,88.65124536]
[1754467026117,13.10967081,164.45,164.44,82.56999993]
[1754467026321,13.10967081,164.45,164.43,0.06]
[1754467026500,13.10967081,164.44,164.43,0.06]
[1754467026923,12.44967081,164.44,164.43,0.06]
[1754467027322,13.10967081,164.44,164.43,0.06]
[1754467030927,4.75949224,164.44,164.43,0.06]
[1754467031098,13.10967081,164.44,164.43,0.06]
[1754467033435,45.19091624,164.44,164.43,0.06]
[1754467033602,45.19091624,164.44,164.42,0.06]
[1754467033603,60.29713181,164.44,164.42,0.06]
[1754467033801,32.67944643,164.43,164.42,0.06]
[1754467034001,33.33944643,164.43,164.42,0.06]
[1754467034214,33.33602304,164.43,164.38,0.06]
[1754467034430,8.35017857,164.39,164.38,0.06]
[1754467034729,33.62967081,164.39,164.38,0.06]
[1754467034914,34.28967081,164.39,164.38,0.06]
[1754467036835,40.37276588,164.39,164.38,0.06]
[1754467042110,41.10621557,164.37,164.36,0.06]
[1754467042307,15.10621557,164.36,164.33,0.06]
[1754467042532,27.28465438,164.35,164.33,0.06]
[1754467042709,27.94465438,164.35,164.33,0.06]
[1754467042925,9.01017857,164.34,164.33,0.06]
[1754467046555,8.35017857,164.34,164.33,0.74]
[1754467046719,8.35017857,164.34,164.33,6.82531613]
[1754467048150,29.55017857,164.35,164.33,6.82531613]
[1754467048639,29.55017857,164.35,164.34,0.68]
[1754467049552,30.26017857,164.35,164.33,0.06]
[1754467049754,8.35017857,164.34,164.33,0.06]
[1754467051644,9.06017857,164.34,164.33,0.06]
[1754467053658,15.14512441,164.34,164.33,0.06]
[1754467059566,8.35017857,164.34,164.33,0.74]
[1754467059956,29.55017857,164.35,164.33,0.74]
[1754467060260,8.35017857,164.34,164.33,0.06]
[1754467060833,8.35017857,164.34,164.33,0.74]
[1754467061239,8.35017857,164.34,164.33,6.82531613]
[1754467062154,29.55017857,164.35,164.33,6.82531613]
[1754467062352,29.55017857,164.35,164.33,6.14531613]
[1754467062557,21.2,164.35,164.34,0.68]
[1754467063544,21.2,164.35,164.34,6.76494584]
[1754467064260,21.2,164.35,164.34,0.68]
[1754467064463,21.2,164.35,164.33,6.14519381]
[1754467064834,21.2,164.35,164.33,6.82519381]
[1754467068941,21.2,164.35,164.33,0.06]
[1754467071962,21.2,164.35,164.33,0.74]
[1754467073362,21.2,164.35,164.33,0.06]
[1754467073548,21.2,164.35,164.33,0.74]
[1754467073752,21.2,164.35,164.34,6.08494584]
[1754467075358,25.28043165,164.35,164.34,6.08494584]
[1754467076453,25.99043165,164.35,164.33,6.14531189]
[1754467076655,21.91,164.35,164.33,6.14531189]
[1754467077273,4.08721735,164.34,164.33,6.14531189]
[1754467078253,4.08721735,164.34,164.33,88.71531182]
[1754467084310,4.79721735,164.34,164.33,82.62999993]
[1754467084454,4.79721735,164.34,164.33,88.71531606]
[1754467085159,4.08721735,164.34,164.33,88.71531606]
[1754467087679,4.08721735,164.34,164.33,89.39531606]
[1754467089887,4.08721735,164.34,164.33,88.71531606]
[1754467090082,4.08721735,164.34,164.33,6.14531613]
[1754467091597,4.08721735,164.34,164.33,14.48721272]
[1754467094194,4.08721735,164.34,164.33,15.16721272]
[1754467094393,4.08721735,164.34,164.33,6.82531613]
[1754467094563,21.2,164.35,164.33,15.16721272]
[1754467094768,21.2,164.35,164.34,9.02189659]
[1754467095002,4.09567231,164.35,164.34,9.02189659]
[1754467095679,4.09567231,164.35,164.34,15.10684243]
[1754467096000,4.09567231,164.35,164.34,97.67684236]
[1754467096499,0.03,164.36,164.34,97.67684236]
[1754467096798,0.03,164.36,164.35,9.02189659]
[1754467096973,4.12456579,164.36,164.35,9.02189659]
[1754467097178,1.71628859,164.36,164.35,9.02189659]
[1754467097794,1.71628859,164.36,164.35,6.7645756]
[1754467098002,1.71628859,164.36,164.35,15.10647219]
[1754467099596,1.71628859,164.36,164.35,97.67647212]
[1754467099776,21.23,164.38,164.35,112.88791112]
[1754467099979,21.23,164.38,164.37,8.34189659]
[1754467100179,21.23,164.38,164.37,90.91189652]
[1754467103505,21.23,164.38,164.37,96.99573176]
[1754467104405,21.94,164.38,164.37,88.65383517]
[1754467107706,21.23,164.38,164.37,93.9892372]
[1754467109212,0.03,164.38,164.37,94.6892372]
[1754467110815,0.03,164.38,164.37,88.65383517]
[1754467111014,0.03,164.38,164.37,93.9892372]
[1754467111377,0.03,164.38,164.37,88.65383517]
[1754467111605,0.73,164.38,164.37,88.65383517]
[1754467113408,0.03,164.38,164.37,93.9892372]
[1754467114710,0.03,164.38,164.37,96.98926399]
[1754467116192,0.03,164.38,164.37,97.68926399]
[1754467117988,0.03,164.38,164.37,96.98926399]
[1754467123518,0.03,164.38,164.37,96.48926399]
[1754467127310,0.03,164.38,164.37,97.18926399]
[1754467128511,0.03,164.38,164.37,96.78926399]
[1754467130319,0.03,164.38,164.37,96.08926399]
[1754467132107,0.03,164.38,164.37,96.78926399]
[1754467132705,0.03,164.38,164.37,117.96926399]
[1754467134720,0.03,164.38,164.37,93.78726668]
[1754467135023,0.03,164.38,164.37,93.08726668]
[1754467138314,0.03,164.38,164.37,93.76726668]
[1754467141317,1e-08,164.38,164.37,93.76726668]
[1754467142909,1e-08,164.38,164.37,93.08726668]
[1754467143110,1e-08,164.38,164.37,93.76726668]
[1754467144538,1e-08,164.4,164.37,108.9768548]
[1754467144727,1e-08,164.4,164.39,5.33343151]
[1754467145040,4.09517299,164.4,164.39,5.33343151]
[1754467145541,4.79517299,164.4,164.39,5.33343151]
[1754467146337,4.79517299,164.4,164.39,11.41652658]
[1754467148843,4.79517299,164.4,164.39,6.08309507]
[1754467149026,4.79517299,164.4,164.39,11.41652658]
[1754467149226,4.79517299,164.4,164.39,93.08652651]
[1754467151042,4.79517299,164.4,164.39,87.753095]
[1754467155245,4.79517299,164.4,164.39,6.08309507]
[1754467156458,4.79517299,164.4,164.38,6.08346514]
[1754467156661,4.09517298,164.39,164.38,11.41689665]
[1754467158166,4.09517298,164.39,164.38,12.09689665]
[1754467159645,4.79517298,164.39,164.38,11.41689665]
[1754467160051,4.09517298,164.39,164.38,11.41689665]
[1754467160759,1e-08,164.4,164.38,12.09689665]
[1754467160963,1e-08,164.4,164.38,11.41689665]
[1754467161166,1e-08,164.4,164.39,5.33343151]
[1754467161667,1e-08,164.4,164.39,6.01343151]
[1754467162166,1e-08,164.4,164.39,12.09652658]
[1754467162362,1e-08,164.4,164.39,11.41652658]
[1754467162670,0.70000001,164.4,164.39,11.41652658]
[1754467163455,1e-08,164.4,164.39,11.41652658]
[1754467164954,0.70000001,164.4,164.39,11.41652658]
[1754467166561,1e-08,164.4,164.39,11.41652658]
[1754467166746,1e-08,164.4,164.39,12.12652658]
[1754467167063,1e-08,164.4,164.39,93.79652651]
[1754467167442,1e-08,164.4,164.39,93.08652651]
[1754467170472,0.69000001,164.4,164.39,93.08652651]
[1754467170668,0.69000001,164.4,164.39,87.753095]
[1754467172659,4.78632211,164.4,164.39,87.753095]
[1754467173574,4.09632211,164.4,164.39,93.08652651]
[1754467174288,4.78632211,164.4,164.39,93.08652651]
[1754467177981,4.09632211,164.4,164.39,93.79652651]
[1754467178168,4.78632211,164.4,164.38,0.06]
[1754467178349,10.11975361,164.39,164.37,6.01052554]
[1754467178547,9.91125246,164.38,164.37,6.01052554]
[1754467179262,4.7863221,164.38,164.37,6.01052554]
[1754467179571,4.0963221,164.38,164.37,11.34395705]
[1754467179756,4.0963221,164.38,164.37,12.05395705]
[1754467180887,1e-08,164.4,164.37,27.26354517]
[1754467181088,1e-08,164.4,164.39,5.33343151]
[1754467181464,1e-08,164.4,164.39,6.04343151]
[1754467181873,1e-08,164.4,164.39,12.12652658]
[1754467182789,1e-08,164.4,164.39,15.12473151]
[1754467184676,1e-08,164.4,164.39,96.79473144]
[1754467185187,1e-08,164.4,164.39,87.753095]
[1754467185393,1e-08,164.4,164.39,96.08473144]
[1754467185983,0.69000001,164.4,164.39,87.753095]
[1754467187658,0.69000001,164.4,164.39,96.08473144]
[1754467188379,0.69000001,164.4,164.39,87.753095]
[1754467189676,1e-08,164.4,164.39,96.08473144]
[1754467190267,1e-08,164.4,164.39,96.79473144]
[1754467192779,1e-08,164.4,164.39,126.28636788]
[1754467194218,1e-08,164.4,164.39,117.95473144]
[1754467195498,1e-08,164.4,164.39,117.24473144]
[1754467195706,1e-08,164.4,164.39,117.93473144]
[1754467200411,0.66000001,164.4,164.39,96.08473144]
[1754467200602,0.66000001,164.4,164.39,6.08309507]
[1754467201189,4.75930452,164.4,164.39,6.08309507]
[1754467201388,4.75930452,164.4,164.39,14.41473151]
[1754467203285,0.66000001,164.4,164.39,14.41473151]
[1754467203527,4.76080407,164.4,164.39,6.08309507]
[1754467203680,4.76080407,164.4,164.39,14.41473151]
[1754467204008,4.10080407,164.4,164.39,14.41473151]
[1754467205409,4.10080407,164.4,164.39,96.08473144]
[1754467206694,4.10080407,164.4,164.39,96.77473144]
[1754467207012,4.10080407,164.4,164.39,96.08473144]
[1754467207198,1e-08,164.4,164.39,88.443095]
[1754467207511,1e-08,164.4,164.39,96.77473144]
[1754467209409,1e-08,164.4,164.39,117.93473144]
[1754467210200,1e-08,164.4,164.39,143.93473144]
[1754467211206,0.03,164.42,164.39,143.93473144]
[1754467211510,21.82,164.45,164.43,8.33163644]
[1754467211706,4.7585163,164.44,164.4,81.66999993]
[1754467211883,0.66,164.43,164.4,81.66999993]
[1754467212089,0.66,164.43,164.41,6.08235508]
[1754467212802,0.66,164.42,164.41,6.08235508]
[1754467213003,0.66,164.42,164.41,14.41399152]
[1754467214500,0.69,164.42,164.41,14.41399152]
[1754467215880,4.78766622,164.42,164.39,6.08283744]
[1754467216083,4.75766622,164.41,164.39,6.08283744]
[1754467216423,4.75766622,164.4,164.39,6.08283744]
[1754467222524,4.75766622,164.4,164.38,0.06]
[1754467222699,34.24930266,164.39,164.38,0.06]
[1754467224244,25.91766622,164.39,164.38,0.06]
[1754467224392,34.24930266,164.39,164.38,0.06]
[1754467225922,25.91766622,164.39,164.38,0.06]
[1754467231517,34.24930266,164.39,164.38,0.06]
[1754467231841,81.4386133,164.39,164.38,0.06]
[1754467233558,4.76766622,164.39,164.38,0.06]
[1754467233757,34.25930266,164.39,164.38,0.06]
[1754467234546,55.4486133,164.39,164.38,0.06]
[1754467237011,41.10621557,164.37,164.36,0.06]
[1754467237217,53.53551823,164.37,164.36,0.06]
[1754467237431,54.20551823,164.37,164.36,0.06]
[1754467238122,60.28935347,164.37,164.36,0.06]
[1754467239042,65.39790406,164.37,164.36,0.06]
[1754467239285,81.50935347,164.37,164.36,0.06]
[1754467239746,86.61790406,164.37,164.36,0.06]
[1754467241215,81.50935347,164.37,164.36,0.06]
[1754467242140,86.61790406,164.37,164.36,0.06]
[1754467243647,25.10621557,164.35,164.34,0.06]
[1754467243953,63.8520902,164.35,164.34,0.06]
[1754467244140,64.5220902,164.35,164.34,0.06]
[1754467244328,59.42551823,164.35,164.34,0.06]
[1754467244650,51.86506323,164.35,164.34,0.06]
[1754467244850,61.86506323,164.35,164.34,0.06]
[1754467245328,67.94963883,164.35,164.34,0.06]
[1754467245521,70.6066658,164.35,164.34,0.06]
[1754467246251,65.51009383,164.35,164.34,0.06]
[1754467247330,25.10621557,164.34,164.33,0.06]
[1754467247549,41.10621557,164.32,164.28,0.06]
[1754467247753,66.42388179,164.32,164.28,0.06]
[1754467248081,67.09388179,164.32,164.28,0.06]
[1754467248352,81.51120469,164.32,164.28,0.06]
[1754467248554,96.60777666,164.32,164.28,0.06]
[1754467248938,23.43785201,164.29,164.28,0.06]
[1754467249125,48.75551823,164.29,164.28,0.06]
[1754467249332,49.42551823,164.29,164.28,0.06]
[1754467249634,59.42551823,164.29,164.28,0.06]
[1754467249846,49.42551823,164.29,164.28,0.06]
[1754467250227,45.20388179,164.29,164.28,0.06]
[1754467250429,80.84231596,164.29,164.28,0.06]
[1754467251249,81.51231596,164.29,164.28,0.06]
[1754467253458,86.29641638,164.29,164.28,0.06]
[1754467253948,60.29641638,164.29,164.28,0.06]
[1754467256262,63.47339275,164.29,164.28,0.06]
[1754467256440,63.47339275,164.29,164.28,1e-08]
[1754467257360,73.47339275,164.29,164.28,1e-08]
[1754467257557,73.47339275,164.29,164.27,0.2]
[1754467257558,10.0,164.28,164.27,0.2]
[1754467257733,28.20551823,164.28,164.27,0.2]
[1754467259243,33.62268647,164.28,164.27,0.2]
[1754467260153,34.29268647,164.28,164.27,0.2]
[1754467260950,55.53268647,164.28,164.27,0.2]
[1754467261672,54.86268647,164.28,164.27,0.2]
[1754467262390,74.77551823,164.28,164.27,0.92]
[1754467263280,80.86268647,164.28,164.27,0.2]
[1754467263500,81.53268647,164.28,164.27,0.2]
[1754467265992,73.20105003,164.28,164.27,0.2]
[1754467266288,81.53268647,164.28,164.27,0.2]
[1754467267097,80.86268647,164.28,164.27,0.2]
[1754467267590,80.86268647,164.28,164.27,0.92]
[1754467267759,80.86268647,164.28,164.27,0.2]
[1754467268160,81.53268647,164.28,164.27,0.2]
[1754467269155,80.86268647,164.28,164.27,0.2]
[1754467269716,55.53268647,164.28,164.27,0.2]
[1754467272221,70.62925844,164.28,164.27,1e-08]
[1754467272625,70.62925844,164.28,164.26,0.2]
[1754467272626,65.53268647,164.28,164.26,0.2]
[1754467272830,33.28230908,164.27,164.26,0.2]
[1754467273925,34.29305703,164.27,164.26,1e-08]
[1754467275222,33.62305703,164.27,164.26,1e-08]
[1754467275420,33.62305703,164.27,164.26,0.72000001]
[1754467275811,54.86305703,164.27,164.26,1e-08]
[1754467276031,81.53305703,164.27,164.26,1e-08]
[1754467276224,49.43785201,164.24,164.23,0.06]
[1754467276426,74.79551823,164.24,164.23,0.06]
[1754467276824,74.79551823,164.24,164.23,0.78]
[1754467277914,80.88416898,164.24,164.23,0.78]
[1754467278449,80.88416898,164.24,164.23,0.06]
[1754467278843,80.88416898,164.24,164.23,0.78]
[1754467279946,51.35766622,164.24,164.23,0.78]
[1754467280151,4.09766622,164.24,164.23,0.78]
[1754467280443,21.26,164.24,164.23,0.78]
[1754467280637,25.32958957,164.24,164.23,0.78]
[1754467284065,25.32958957,164.24,164.23,9.11163644]
[1754467285862,25.32958957,164.24,164.23,0.78]
[1754467286337,25.32958957,164.24,164.23,9.11163644]
[1754467286755,25.32958957,164.24,164.23,15.20065793]
[1754467287761,25.32958957,164.24,164.23,0.78]
[1754467287964,25.32958957,164.24,164.23,9.11163644]
[1754467290254,25.32958957,164.24,164.23,15.20065793]
[1754467291447,25.32958957,164.24,164.23,9.11163644]
[1754467293075,25.32958957,164.24,164.23,0.06]
[1754467299384,4.06958957,164.24,164.23,0.75]
[1754467299552,4.06958957,164.24,164.23,9.08163644]
[1754467299757,25.28958957,164.25,164.23,9.08163644]
[1754467299965,21.22,164.25,164.24,9.02163644]
[1754467300167,25.31308061,164.25,164.24,8.33163644]
[1754467300364,25.31308061,164.25,164.24,9.02163644]
[1754467300555,0.03,164.26,164.24,35.02163644]
[1754467300764,0.03,164.26,164.25,9.02163644]
[1754467301978,21.10935044,164.28,164.25,30.33061665]
[1754467302164,21.10935044,164.28,164.27,8.33163644]
[1754467302484,0.03,164.33,164.27,35.02163644]
[1754467302678,21.29,164.33,164.32,8.33163644]
[1754467302876,25.37927514,164.33,164.32,8.33163644]
[1754467303183,25.37927514,164.33,164.32,9.02163644]
[1754467303478,21.29,164.33,164.32,9.02163644]
[1754467304185,21.29,164.33,164.32,15.1073229]
[1754467305486,0.03,164.33,164.32,15.1073229]
[1754467308222,0.03,164.33,164.32,6.77568646]
[1754467308381,0.03,164.33,164.32,14.4173229]
[1754467308699,0.03,164.33,164.32,6.08568646]
[1754467309005,0.03,164.33,164.32,14.4173229]
[1754467312515,0.03,164.33,164.32,14.4173229]
[1754467318905,0.03,164.33,164.31,6.0859081]
[1754467319106,0.03,164.33,164.32,8.33163644]
[1754467319922,0.72,164.33,164.32,8.33163644]
[1754467320541,0.03,164.33,164.32,8.33163644]
[1754467322323,0.03,164.33,164.32,14.4173229]
[1754467322529,0.03,164.33,164.32,15.1273229]
[1754467326654,0.03,164.33,164.32,97.3273229]
[1754467334549,0.03,164.33,164.32,118.5273229]
[1754467340544,1e-08,164.33,164.32,118.5273229]
[1754467340741,0.03,164.35,164.33,82.19999999]
[1754467341069,21.91,164.39,164.34,29.53163644]
[1754467341238,21.91,164.39,164.38,8.33163644]
[1754467342257,0.69,164.39,164.38,8.33163644]
[1754467342559,0.69,164.39,164.38,14.41510158]
[1754467344632,4.7718771,164.39,164.38,14.41510158]
[1754467344833,0.69,164.39,164.38,14.41510158]
[1754467345274,4.7718771,164.39,164.38,14.41510158]
[1754467345563,0.72,164.39,164.38,14.41510158]
[1754467345940,4.8018771,164.39,164.38,14.41510158]
[1754467346243,0.72,164.39,164.38,14.41510158]
[1754467346445,4.8018771,164.39,164.38,14.41510158]
[1754467346650,0.03,164.39,164.38,15.11510158]
[1754467347146,0.03,164.41,164.38,56.32376443]
[1754467347460,0.03,164.41,164.4,8.33163644]
[1754467347666,0.03,164.42,164.41,34.33163644]
[1754467347968,0.03,164.42,164.41,35.03163644]
[1754467348140,0.03,164.42,164.41,37.46820944]
[1754467348463,0.03,164.42,164.38,42.49212799]
[1754467348464,4.83925862,164.42,164.39,6.08309507]
[1754467348654,0.72,164.41,164.38,14.41504423]
[1754467348855,4.08837977,164.4,164.38,14.41504423]
[1754467349066,0.72,164.39,164.38,14.41504423]
[1754467349278,0.72,164.39,164.38,8.33163644]
[1754467349695,0.72,164.39,164.38,14.41510158]
[1754467352786,4.11825803,164.42,164.38,14.41510158]
[1754467352959,4.11825803,164.42,164.41,8.33163644]
[1754467353161,4.83825803,164.42,164.41,8.33163644]
[1754467353364,4.83825803,164.42,164.39,8.33163644]
[1754467353591,0.72,164.41,164.39,8.33163644]
[1754467354183,0.72,164.41,164.39,14.41449346]
[1754467354987,0.72,164.41,164.39,6.08285702]
[1754467356196,8.33163644,164.4,164.37,6.08383524]
[1754467356362,9.05163644,164.39,164.37,6.08383524]
[1754467356569,0.72,164.38,164.37,6.08383524]
[1754467359689,0.72,164.38,164.34,21.29650376]
[1754467359889,9.05163644,164.38,164.34,21.29650376]
[1754467360092,0.72,164.37,164.34,21.29650376]
[1754467360270,0.72,164.37,164.34,6.08494584]
[1754467360471,12.41643361,164.36,164.34,6.08494584]
[1754467360666,0.72,164.35,164.32,6.08568646]
[1754467360980,4.80393732,164.35,164.32,6.08568646]
[1754467361181,4.08393732,164.35,164.32,14.4173229]
[1754467361496,4.08393732,164.35,164.32,15.1173229]
[1754467361679,4.80393732,164.35,164.32,15.1173229]
[1754467362284,4.08393732,164.35,164.33,8.33163644]
[1754467362498,4.08393732,164.35,164.33,9.03163644]
[1754467362792,0.72,164.37,164.32,21.29990262]
[1754467362793,4.08393732,164.37,164.34,9.03163644]
[1754467363001,4.08393732,164.37,164.35,8.33163644]
[1754467363173,4.80393732,164.37,164.35,8.33163644]
[1754467363592,4.80393732,164.37,164.36,6.0842054]
[1754467366383,4.08393732,164.37,164.36,14.41584184]
[1754467366781,21.22,164.38,164.36,14.41584184]
[1754467366996,21.22,164.38,164.36,14.47584184]
[1754467367179,21.94,164.38,164.36,14.47584184]
[1754467368472,21.22,164.38,164.37,8.33163644]
[1754467368675,25.3068405,164.38,164.37,8.33163644]
[1754467369884,25.3068405,164.38,164.37,14.41547168]
[1754467370304,26.0268405,164.38,164.37,6.08383524]
[1754467371202,25.3068405,164.38,164.37,14.41547168]
[1754467372282,25.3068405,164.38,164.37,15.11547168]
[1754467373313,25.3068405,164.38,164.37,14.41547168]
[1754467375185,25.3068405,164.38,164.37,15.11547168]
[1754467375385,21.22,164.38,164.37,15.11547168]
[1754467375608,21.97,164.42,164.37,15.11547168]
[1754467375806,4.0897314,164.41,164.39,8.33163644]
[1754467376014,4.0897314,164.4,164.39,8.33163644]
[1754467376705,4.0897314,164.4,164.39,14.41473151]
[1754467376897,4.0897314,164.4,164.39,15.10473151]
[1754467377423,4.0897314,164.4,164.39,97.3047315]
[1754467377722,4.0897314,164.41,164.39,97.3047315]
[1754467378022,21.25,164.42,164.4,9.02163644]
[1754467378226,21.25,164.42,164.41,8.33163644]
[1754467378516,25.34017027,164.42,164.41,8.33163644]
[1754467378990,25.34017027,164.42,164.41,14.41399152]
[1754467379387,25.34017027,164.42,164.41,15.10399152]
[1754467379810,0.03,164.42,164.41,15.10399152]
[1754467381898,0.03,164.42,164.41,14.41399152]
[1754467382111,0.03,164.42,164.41,6.08235508]
[1754467382310,4.82822327,164.42,164.41,14.41399152]
[1754467383354,0.74,164.42,164.41,14.41399152]
[1754467385250,0.74,164.42,164.41,6.08235508]
[1754467385544,0.03,164.42,164.41,6.08235508]
[1754467386133,0.74,164.42,164.41,6.08235508]
[1754467386340,4.82703311,164.42,164.41,6.08235508]
[1754467387547,4.82703311,164.42,164.41,14.41399152]
[1754467387837,4.11703311,164.42,164.41,14.41399152]
[1754467388043,0.03,164.42,164.41,14.41399152]
[1754467388743,0.03,164.42,164.41,14.47399152]
[1754467389748,0.03,164.42,164.41,15.16399152]
[1754467390354,0.03,164.42,164.41,14.47399152]
[1754467390543,0.03,164.42,164.41,15.16399152]
[1754467391040,0.03,164.42,164.41,14.47399152]
[1754467391739,0.03,164.42,164.41,96.67399151]
[1754467394044,0.74,164.42,164.41,96.67399151]
[1754467395448,0.03,164.42,164.41,96.67399151]
[1754467397651,0.03,164.42,164.41,14.47399152]
[1754467398682,0.74,164.42,164.41,14.47399152]
[1754467399178,0.03,164.42,164.41,14.47399152]
[1754467399878,0.03,164.42,164.41,15.16399152]
[1754467400074,1e-08,164.42,164.41,97.36399151]
[1754467400280,1e-08,164.42,164.41,96.67399151]
[1754467400654,0.71000001,164.42,164.41,96.67399151]
[1754467400962,0.71000001,164.42,164.41,6.14235508]
[1754467402775,0.71000001,164.42,164.41,0.06]
[1754467406666,1e-08,164.42,164.41,0.06]
[1754467406975,1e-08,164.42,164.41,15.18399152]
[1754467407780,1e-08,164.42,164.41,14.47399152]
[1754467409970,1e-08,164.42,164.41,15.18399152]
[1754467410174,1e-08,164.42,164.41,14.47399152]
[1754467410485,4.08983039,164.42,164.41,14.47399152]
[1754467410687,4.76983039,164.42,164.41,14.47399152]